fUSD/lending_fUSD_20250309
["ID","MTS","AMOUNT","RATE_DAILY","PERIOD"]
[355725768,1741506646621,-151.0,9.342e-05,2]
[355725769,1741506646630,-292.88,9.342e-05,2]
[355725770,1741506646639,-1427.0,9.343e-05,2]
[355725771,1741506646649,-6953654.60215462,9.343e-05,2]
[355725772,1741506646660,-1526.77504163,9.343e-05,2]
[355725773,1741506646671,-1753.10207442,9.343e-05,2]
[355725774,1741506646689,-1297.01,9.343e-05,2]
[355725775,1741506646700,-313.54721144,9.343e-05,2]
[355725776,1741506646716,-4814.11319187,9.343e-05,2]
[355725777,1741506646726,-1081.03146575,9.343e-05,2]
[355725805,1741507105193,502.43,7.956e-05,2]
[355725807,1741507159296,302.57,7.991e-05,2]
[355725812,1741507336924,500.0,0.00028,120]
[355725813,1741507340798,500.0,0.00028,120]
[355725814,1741507345203,500.0,0.00028,120]
[355725815,1741507350637,500.0,0.00028,120]
[355725816,1741507350846,150.0,0.00027808,120]
[355725817,1741507352996,500.0,0.00028,120]
[355725818,1741507361932,500.0,0.00028,120]
[355725819,1741507363951,500.0,0.00028,120]
[355725820,1741507366406,500.0,0.00028,120]
[355725822,1741507368467,500.0,0.00028,120]
[355725823,1741507369832,99195.0,8e-05,3]
[355725824,1741507369857,91365.29090215,8e-05,3]
[355725825,1741507381683,500.0,0.00028,120]
[355725826,1741507384103,500.0,0.00028,120]
[355725827,1741507392295,500.0,0.00028,120]
[355725828,1741507394810,500.0,0.00028,120]
[355725829,1741507400490,500.0,0.00028,120]
[355725830,1741507439935,23900.0,7.97e-05,2]
[355725831,1741507458130,197.98,7.97e-05,2]
[355725832,1741507470887,150.0,0.00026063,120]
[355725837,1741507573252,2000.0,7.946e-05,2]
[355725839,1741507612732,500.0,7.939e-05,2]
[355725894,1741507764131,294.75,7.958e-05,2]
[355725899,1741507821777,200.0,7.953e-05,2]
[355725907,1741507832200,-1000.0,8.219e-05,2]
[355725908,1741507832210,-1947.84,8.219e-05,2]
[355725909,1741507832220,-343.31,8.219e-05,2]
[355725910,1741507832230,-164.64,8.219e-05,2]
[355725911,1741507832240,-354.15,8.26e-05,2]
[355725912,1741507832251,-354.15,8.286e-05,2]
[355725913,1741507832261,-354.15,8.312e-05,2]
[355725914,1741507832271,-354.15,8.338e-05,2]
[355725915,1741507832281,-550.86,8.347e-05,2]
[355725916,1741507832290,-354.15,8.364e-05,2]
[355725917,1741507832299,-2309.74,8.376e-05,2]
[355725918,1741507832309,-354.15,8.39e-05,2]
[355725919,1741507832320,-354.15,8.417e-05,2]
[355725920,1741507832330,-354.15,8.443e-05,2]
[355725921,1741507832341,-250.0,8.452e-05,2]
[355725922,1741507832352,-354.15,8.469e-05,2]
[355725923,1741507832363,-354.15,8.495e-05,2]
[355725924,1741507832373,-354.15,8.521e-05,2]
[355725925,1741507832387,-354.15,8.547e-05,2]
[355725926,1741507832398,-354.15,8.573e-05,2]
[355725927,1741507832408,-354.15,8.599e-05,2]
[355725928,1741507832417,-414.48,8.603e-05,2]
[355725929,1741507832427,-354.15,8.625e-05,2]
[355725930,1741507832437,-354.15,8.651e-05,2]
[355725931,1741507832447,-354.15,8.677e-05,2]
[355725932,1741507832458,-4.73026351,8.689e-05,2]
[355725933,1741507832470,-195.26973649,8.689e-05,2]
[355725934,1741507832479,-150.0,8.689e-05,2]
[355725935,1741507832488,-354.15,8.703e-05,2]
[355725936,1741507832497,-354.15,8.729e-05,2]
[355725937,1741507832506,-89.6701277,8.756e-05,2]
[355725938,1741507832544,-264.4798723,8.756e-05,2]
[355725939,1741507832554,-185.05,8.913e-05,2]
[355725940,1741507832564,-58.94211484,8.951e-05,2]
[355725941,1741507832596,-443.48788516,8.951e-05,2]
[355725942,1741507832606,-507.82981777,9.032e-05,2]
[355725943,1741507832618,-492.17018223,9.032e-05,2]
[355725944,1741507832628,-150.0,9.069e-05,2]
[355725945,1741507832638,-150.0,9.082e-05,2]
[355725946,1741507832648,-150.0,9.108e-05,2]
[355725947,1741507832658,-150.0,9.15e-05,2]
[355725948,1741507832667,-150.0,9.151e-05,2]
[355725949,1741507832677,-311.84756655,9.157e-05,2]
[355725950,1741507832687,-150.0,9.166e-05,2]
[355725951,1741507832697,-372.83337937,9.182e-05,2]
[355725952,1741507832706,-486.1839,9.183e-05,2]
[355725953,1741507832715,-223.1025,9.183e-05,2]
[355725954,1741507832725,-156.5302,9.183e-05,2]
[355725955,1741507832736,-267.4558,9.183e-05,2]
[355725956,1741507832746,-3892.3705,9.183e-05,2]
[355725957,1741507832756,-150.0,9.187e-05,2]
[355725958,1741507832766,-150.0,9.197e-05,2]
[355725959,1741507832775,-631.856,9.241e-05,2]
[355725960,1741507832785,-1000.0,9.247e-05,2]
[355725961,1741507832795,-1120.653,9.281e-05,2]
[355725962,1741507832805,-500.0,9.282e-05,2]
[355725963,1741507832815,-500.0,9.282e-05,2]
[355725964,1741507832825,-500.0,9.282e-05,2]
[355725965,1741507832835,-500.0,9.282e-05,2]
[355725966,1741507832844,-193.42,9.282e-05,2]
[355725967,1741507832854,-500.0,9.282e-05,2]
[355725968,1741507832863,-500.0,9.282e-05,2]
[355725969,1741507832873,-500.0,9.282e-05,2]
[355725970,1741507832883,-854.12,9.282e-05,2]
[355725971,1741507832893,-371.05,9.282e-05,2]
[355725972,1741507832903,-500.0,9.282e-05,2]
[355725973,1741507832912,-305.56,9.282e-05,2]
[355725974,1741507832921,-274.27243885,9.283e-05,2]
[355725975,1741507832948,-231.97099444,9.283e-05,2]
[355725976,1741507832958,-500.0,9.283e-05,2]
[355725977,1741507832967,-515.93746193,9.283e-05,2]
[355725978,1741507832977,-500.0,9.283e-05,2]
[355725979,1741507832986,-505.5610877,9.283e-05,2]
[355725980,1741507832996,-500.3460043,9.283e-05,2]
[355725981,1741507833006,-500.0,9.283e-05,2]
[355725982,1741507833015,-504.36745733,9.283e-05,2]
[355725983,1741507833026,-500.0,9.283e-05,2]
[355725984,1741507833036,-500.0,9.283e-05,2]
[355725985,1741507833046,-2806.65649294,9.29e-05,2]
[355725986,1741507833056,-2038.24,9.3e-05,2]
[355725987,1741507833066,-772.0,9.3e-05,2]
[355725988,1741507833075,-368.0,9.3e-05,2]
[355725989,1741507833085,-721.0809,9.3e-05,2]
[355725990,1741507833095,-750.0,9.3e-05,2]
[355725991,1741507833104,-235.5881,9.3e-05,2]
[355725992,1741507833113,-150.0,9.302e-05,2]
[355725993,1741507833122,-501.23778047,9.323e-05,2]
[355725994,1741507833131,-2836.7292336,9.337e-05,2]
[355725995,1741507833141,-998.8438764,9.337e-05,2]
[355725996,1741507833150,-2553.0563103,9.337e-05,2]
[355725997,1741507833159,-2940.8560806,9.337e-05,2]
[355725998,1741507833168,-502.35176556,9.337e-05,2]
[355725999,1741507833197,-38.49218157,9.337e-05,2]
[355726000,1741507833207,-2331.0271423,9.337e-05,2]
[355726001,1741507833216,-27491.78406043,9.34e-05,2]
[355726005,1741507838164,-1191.28976812,9.34e-05,2]
[355726006,1741507838176,-946.36091759,9.34e-05,2]
[355726007,1741507838186,-564.56477959,9.34e-05,2]
[355726008,1741507838220,-687.37522041,9.34e-05,2]
[355726009,1741507838231,-1099.72,9.34e-05,2]
[355726010,1741507838242,-1005.56,9.34e-05,2]
[355726011,1741507838251,-2484.25,9.34e-05,2]
[355726012,1741507838261,-743.28,9.34e-05,2]
[355726013,1741507838271,-249.31255676,9.34e-05,2]
[355726014,1741507838283,-256.91980793,9.34e-05,2]
[355726015,1741507838393,-1116.16763531,9.34e-05,2]
[355726016,1741507838405,-500.0,9.34e-05,2]
[355726017,1741507838416,-1201.39,9.34e-05,2]
[355726018,1741507838425,-1518.13,9.34e-05,2]
[355726019,1741507838438,-500.0,9.34e-05,2]
[355726020,1741507838450,-500.0,9.34e-05,2]
[355726021,1741507838461,-2046.43,9.34e-05,2]
[355726022,1741507838471,-500.0,9.34e-05,2]
[355726023,1741507838486,-526.95,9.34e-05,2]
[355726024,1741507838495,-897.22,9.34e-05,2]
[355726025,1741507838504,-2878.13,9.34e-05,2]
[355726026,1741507838514,-2340.04,9.34e-05,2]
[355726027,1741507838524,-1827.74,9.34e-05,2]
[355726028,1741507838533,-500.0,9.34e-05,2]
[355726029,1741507838543,-1093.86,9.34e-05,2]
[355726030,1741507838552,-1129.41,9.34e-05,2]
[355726032,1741507838562,-460.43185481,9.34e-05,2]
[355726079,1741507840364,-438.4,9.34e-05,2]
[355726080,1741507840475,-594.0,9.34e-05,2]
[355726081,1741507840489,-1145.79814519,9.34e-05,2]
[355726082,1741507840499,-551.4,9.34e-05,2]
[355726083,1741507840509,-500.0,9.34e-05,2]
[355726084,1741507840519,-797.12,9.34e-05,2]
[355726085,1741507840528,-510.31,9.34e-05,2]
[355726086,1741507840538,-900.72,9.34e-05,2]
[355726087,1741507840548,-692.5,9.34e-05,2]
[355726088,1741507840557,-720.22,9.34e-05,2]
[355726089,1741507840567,-500.0,9.34e-05,2]
[355726090,1741507840576,-500.0,9.34e-05,2]
[355726091,1741507840586,-500.0,9.34e-05,2]
[355726092,1741507840596,-500.0,9.341e-05,2]
[355726093,1741507840606,-500.0,9.341e-05,2]
[355726094,1741507840615,-500.0,9.341e-05,2]
[355726095,1741507840626,-181.93185481,9.341e-05,2]
[355726096,1741507840639,-318.06814519,9.341e-05,2]
[355726097,1741507840648,-487.69885581,9.341e-05,2]
[355726098,1741507840662,-45.73621453,9.341e-05,2]
[355726099,1741507840671,-293.91178547,9.341e-05,2]
[355726115,1741507844948,-4836.68,9.34e-05,2]
[355726116,1741507844959,-65.68500065,9.34e-05,2]
[355726117,1741507844970,-434.31499935,9.34e-05,2]
[355726118,1741507844980,-206.08821453,9.341e-05,2]
[355726119,1741507844989,-500.0,9.341e-05,2]
[355726120,1741507844999,-500.0,9.341e-05,2]
[355726121,1741507845009,-500.38281188,9.341e-05,2]
[355726122,1741507845019,-500.0,9.341e-05,2]
[355726123,1741507845029,-500.0,9.341e-05,2]
[355726124,1741507845039,-167.90613958,9.341e-05,2]
[355726125,1741507845049,-500.0,9.341e-05,2]
[355726126,1741507845058,-507.57794343,9.341e-05,2]
[355726127,1741507845068,-500.0,9.341e-05,2]
[355726128,1741507845078,-500.0,9.341e-05,2]
[355726129,1741507845087,-500.0,9.341e-05,2]
[355726130,1741507845096,-500.0,9.341e-05,2]
[355726131,1741507845106,-500.0,9.341e-05,2]
[355726132,1741507845116,-500.0,9.341e-05,2]
[355726133,1741507845126,-500.0,9.341e-05,2]
[355726134,1741507845137,-199.42985123,9.341e-05,2]
[355726135,1741507845196,-300.57014877,9.341e-05,2]
[355726136,1741507845205,-25.7046427,9.341e-05,2]
[355726137,1741507846332,-474.2953573,9.341e-05,2]
[355726138,1741507846342,-371.74199503,9.341e-05,2]
[355726146,1741507940063,5293.81,8e-05,2]
[355726148,1741508009089,-150.0,8.632e-05,2]
[355726149,1741508012060,-151.02340468,8.632e-05,2]
[355726190,1741508565703,-1917.91,8.219e-05,2]
[355726191,1741508565724,-300.0,8.29e-05,2]
[355726192,1741508565979,-23900.0,8.291e-05,2]
[355726193,1741508566004,-529.2,8.476e-05,2]
[355726194,1741508566028,-171.54,8.596e-05,2]
[355726195,1741508566050,-853.84659532,8.632e-05,2]
[355726196,1741508566072,-200.0,8.655e-05,2]
[355726197,1741508566094,-250.0,8.666e-05,2]
[355726198,1741508566114,-174.93476853,8.667e-05,2]
[355726199,1741508566135,-1469.21755715,8.667e-05,2]
[355726200,1741508566156,-3617.51,8.767e-05,2]
[355726201,1741508566177,-184.55,9.006e-05,2]
[355726202,1741508566202,-150.0,9.088e-05,2]
[355726203,1741508566223,-420.0,9.118e-05,2]
[355726204,1741508566244,-150.0,9.135e-05,2]
[355726205,1741508566266,-1469.21755716,9.141e-05,2]
[355726206,1741508566288,-150.0,9.206e-05,2]
[355726207,1741508566309,-3509.62722667,9.233e-05,2]
[355726208,1741508566330,-651.6343,9.24e-05,2]
[355726209,1741508566352,-445.4525,9.24e-05,2]
[355726210,1741508566374,-299.5491,9.241e-05,2]
[355726211,1741508566396,-8198.5498,9.241e-05,2]
[355726212,1741508566416,-880.7117,9.241e-05,2]
[355726213,1741508566437,-500.0,9.242e-05,2]
[355726214,1741508566458,-602.69,9.242e-05,2]
[355726215,1741508566479,-150.0,9.242e-05,2]
[355726216,1741508566500,-896.523,9.243e-05,2]
[355726217,1741508566525,-65996.8063,9.243e-05,2]
[355726218,1741508566547,-300.0,9.298e-05,2]
[355726219,1741508566568,-174.93476852,9.298e-05,2]
[355726220,1741508566589,-721.0,9.3e-05,2]
[355726221,1741508566613,-1000.0,9.3e-05,2]
[355726222,1741508566633,-996.0,9.3e-05,2]
[355726223,1741508566654,-1006.0,9.3e-05,2]
[355726224,1741508566676,-1005.0,9.3e-05,2]
[355726225,1741508566698,-1000.0,9.3e-05,2]
[355726226,1741508566718,-235.0,9.3e-05,2]
[355726227,1741508566738,-1179.0,9.3e-05,2]
[355726228,1741508566762,-855.0,9.3e-05,2]
[355726229,1741508566783,-1030.2556,9.315e-05,2]
[355726230,1741508566805,-153.74676641,9.331e-05,2]
[355726231,1741508566826,-3190.5596497,9.337e-05,2]
[355726232,1741508566848,-6231.3812576,9.337e-05,2]
[355726233,1741508566870,-1138.89,9.339e-05,2]
[355726234,1741508566891,-500.0,9.339e-05,2]
[355726235,1741508566912,-1041.75,9.339e-05,2]
[355726236,1741508566933,-500.0,9.339e-05,2]
[355726237,1741508566954,-500.0,9.339e-05,2]
[355726238,1741508566975,-1337.45,9.339e-05,2]
[355726239,1741508566996,-500.0,9.339e-05,2]
[355726240,1741508567019,-766.2,9.339e-05,2]
[355726241,1741508567041,-500.0,9.339e-05,2]
[355726242,1741508567062,-2574.57,9.339e-05,2]
[355726243,1741508567084,-1692.44,9.339e-05,2]
[355726244,1741508567106,-757.08,9.339e-05,2]
[355726245,1741508567128,-500.0,9.339e-05,2]
[355726246,1741508567150,-1574.02,9.339e-05,2]
[355726247,1741508567172,-500.0,9.339e-05,2]
[355726248,1741508567194,-502.16257956,9.339e-05,2]
[355726249,1741508567216,-500.0,9.339e-05,2]
[355726250,1741508567237,-1251.52,9.339e-05,2]
[355726251,1741508567262,-598.42,9.339e-05,2]
[355726252,1741508567283,-500.0,9.339e-05,2]
[355726253,1741508567305,-500.0,9.339e-05,2]
[355726254,1741508567326,-500.0,9.339e-05,2]
[355726255,1741508567347,-500.0,9.339e-05,2]
[355726256,1741508567369,-2109.53,9.339e-05,2]
[355726257,1741508567390,-500.0,9.339e-05,2]
[355726258,1741508567411,-2974.2,9.339e-05,2]
[355726259,1741508567433,-500.0,9.339e-05,2]
[355726260,1741508567454,-500.0,9.339e-05,2]
[355726261,1741508567475,-1751.59,9.339e-05,2]
[355726262,1741508567497,-500.0,9.339e-05,2]
[355726263,1741508567519,-497.81415793,9.339e-05,2]
[355726264,1741508567541,-500.0,9.339e-05,2]
[355726265,1741508567563,-500.0,9.339e-05,2]
[355726266,1741508567584,-500.0,9.339e-05,2]
[355726267,1741508567610,-1140.5,9.339e-05,2]
[355726268,1741508567631,-500.0,9.339e-05,2]
[355726269,1741508567654,-2382.37,9.339e-05,2]
[355726270,1741508567676,-500.0,9.339e-05,2]
[355726271,1741508567702,-500.0,9.339e-05,2]
[355726272,1741508567724,-500.0,9.339e-05,2]
[355726273,1741508567746,-3145.5,9.339e-05,2]
[355726274,1741508567769,-500.0,9.339e-05,2]
[355726275,1741508567791,-500.0,9.339e-05,2]
[355726276,1741508567812,-500.0,9.339e-05,2]
[355726277,1741508567833,-500.0,9.339e-05,2]
[355726278,1741508567855,-832.32,9.339e-05,2]
[355726279,1741508567877,-500.0,9.339e-05,2]
[355726280,1741508567899,-500.0,9.339e-05,2]
[355726281,1741508567921,-1109.96,9.339e-05,2]
[355726282,1741508567943,-500.0,9.339e-05,2]
[355726283,1741508567964,-500.0,9.339e-05,2]
[355726284,1741508567987,-500.0,9.339e-05,2]
[355726285,1741508568011,-762.48,9.339e-05,2]
[355726286,1741508568035,-577.63,9.339e-05,2]
[355726287,1741508568060,-500.0,9.339e-05,2]
[355726288,1741508568083,-500.0,9.339e-05,2]
[355726289,1741508568105,-500.0,9.339e-05,2]
[355726290,1741508568128,-542.03,9.339e-05,2]
[355726291,1741508568151,-539.94,9.339e-05,2]
[355726292,1741508568175,-500.0,9.339e-05,2]
[355726293,1741508568198,-500.0,9.339e-05,2]
[355726294,1741508568221,-5033.71,9.339e-05,2]
[355726295,1741508568243,-500.0,9.339e-05,2]
[355726296,1741508568268,-500.0,9.339e-05,2]
[355726297,1741508568291,-500.0,9.339e-05,2]
[355726298,1741508568312,-500.0,9.339e-05,2]
[355726299,1741508568334,-581.28,9.339e-05,2]
[355726300,1741508568357,-500.0,9.339e-05,2]
[355726301,1741508568381,-500.0,9.339e-05,2]
[355726302,1741508568404,-1410.74,9.339e-05,2]
[355726303,1741508568426,-500.0,9.339e-05,2]
[355726304,1741508568448,-500.0,9.339e-05,2]
[355726305,1741508568470,-500.0,9.339e-05,2]
[355726306,1741508568493,-1824.25,9.339e-05,2]
[355726307,1741508568517,-32.30481545,9.339e-05,2]
[355726334,1741509032359,-2000.0,8.433e-05,2]
[355726337,1741509032371,-250.0,8.441e-05,2]
[355726338,1741509032380,-200.0,8.467e-05,2]
[355726339,1741509032390,-243.23,8.471e-05,2]
[355726340,1741509032399,-1000.0,8.512e-05,2]
[355726341,1741509032408,-500.0,8.524e-05,2]
[355726342,1741509032418,-525.909676,9.025e-05,2]
[355726343,1741509032427,-264.0,9.071e-05,2]
[355726344,1741509032436,-174.52909891,9.121e-05,2]
[355726345,1741509032446,-28.39524846,9.121e-05,2]
[355726346,1741509032478,-637.24724214,9.121e-05,2]
[355726347,1741509032487,-150.99,9.198e-05,2]
[355726348,1741509032496,-300.0,9.198e-05,2]
[355726349,1741509032505,-150.0,9.198e-05,2]
[355726350,1741509032515,-368.96275786,9.199e-05,2]
[355726351,1741509032526,-131.03724214,9.199e-05,2]
[355726352,1741509032535,-500.0,9.199e-05,2]
[355726353,1741509032544,-278.44412622,9.199e-05,2]
[355726354,1741509032553,-500.0,9.199e-05,2]
[355726355,1741509032562,-500.0,9.199e-05,2]
[355726356,1741509032571,-204.84676178,9.199e-05,2]
[355726357,1741509032581,-500.0,9.199e-05,2]
[355726358,1741509032590,-500.0,9.199e-05,2]
[355726359,1741509032599,-500.0,9.199e-05,2]
[355726360,1741509032609,-500.0,9.199e-05,2]
[355726361,1741509032618,-500.0,9.199e-05,2]
[355726362,1741509032627,-250.0,9.199e-05,2]
[355726363,1741509032636,-1176.06,9.199e-05,2]
[355726364,1741509032645,-1392.67,9.199e-05,2]
[355726365,1741509032654,-1076.0,9.199e-05,2]
[355726366,1741509032663,-2659.76,9.199e-05,2]
[355726367,1741509032672,-788.16,9.199e-05,2]
[355726368,1741509032681,-1758.7,9.199e-05,2]
[355726369,1741509032690,-500.0,9.199e-05,2]
[355726370,1741509032700,-1627.82,9.199e-05,2]
[355726371,1741509032709,-273.66378832,9.199e-05,2]
[355726372,1741509032720,-226.33621168,9.199e-05,2]
[355726373,1741509032729,-500.0,9.199e-05,2]
[355726374,1741509032738,-2128.28,9.199e-05,2]
[355726375,1741509032747,-500.0,9.199e-05,2]
[355726376,1741509032756,-646.01,9.199e-05,2]
[355726377,1741509032765,-979.99,9.199e-05,2]
[355726378,1741509032774,-3066.82,9.199e-05,2]
[355726379,1741509032788,-1902.59,9.199e-05,2]
[355726380,1741509032797,-1814.91,9.199e-05,2]
[355726381,1741509032806,-500.0,9.199e-05,2]
[355726382,1741509032815,-1184.74,9.199e-05,2]
[355726383,1741509032826,-1226.56,9.199e-05,2]
[355726384,1741509032836,-3653.17,9.199e-05,2]
[355726385,1741509032845,-602.4,9.199e-05,2]
[355726386,1741509032855,-866.36,9.199e-05,2]
[355726387,1741509032864,-500.0,9.199e-05,2]
[355726388,1741509032874,-500.0,9.199e-05,2]
[355726389,1741509032883,-613.02682377,9.199e-05,2]
[355726390,1741509032892,-500.0,9.199e-05,2]
[355726391,1741509032902,-500.0,9.199e-05,2]
[355726392,1741509032911,-569.26,9.199e-05,2]
[355726393,1741509032920,-829.75,9.199e-05,2]
[355726394,1741509032929,-1050.31,9.199e-05,2]
[355726395,1741509032939,-500.0,9.199e-05,2]
[355726396,1741509032949,-500.0,9.199e-05,2]
[355726397,1741509032958,-500.0,9.199e-05,2]
[355726400,1741509032972,-1134.62,9.199e-05,2]
[355726402,1741509032981,-753.16,9.199e-05,2]
[355726404,1741509032991,-554.11,9.199e-05,2]
[355726406,1741509033000,-500.0,9.199e-05,2]
[355726408,1741509033010,-5225.2,9.199e-05,2]
[355726410,1741509033019,-1833.34651682,9.199e-05,2]
[355726412,1741509033029,-39511.17209275,9.199e-05,2]
[355726414,1741509033041,-38323.25929796,9.199e-05,2]
[355726416,1741509033053,-9757.12817506,9.199e-05,2]
[355726417,1741509033071,-17259.14400613,9.199e-05,2]
[355726418,1741509033083,-2617.66474056,9.199e-05,2]
[355726419,1741509033106,-279865.54566988,9.199e-05,2]
[355726420,1741509033118,-1516.24632183,9.199e-05,2]
[355726427,1741509038394,-500.0,9.199e-05,2]
[355726428,1741509038404,-500.0,9.199e-05,2]
[355726429,1741509038413,-500.0,9.199e-05,2]
[355726430,1741509038423,-6079.32528866,9.199e-05,2]
[355726431,1741509038451,-260.58,9.199e-05,2]
[355726432,1741509038669,-7496.75202674,9.199e-05,2]
[355726433,1741509038726,-589.22609992,9.199e-05,2]
[355726446,1741509040399,-500.0,9.199e-05,2]
[355726447,1741509040408,-107.46602351,9.199e-05,2]
[355726448,1741509040463,-3445.74720309,9.199e-05,2]
[355726449,1741509040474,-4930.9037663,9.199e-05,2]
[355726450,1741509040564,-5409.66,9.199e-05,2]
[355726451,1741509040576,-1000.0,9.199e-05,2]
[355726463,1741509041284,-0.00856738,9.199e-05,2]
[355726464,1741509041313,-2378.00000003,9.199e-05,2]
[355726495,1741509045106,-500.0,9.199e-05,2]
[355726496,1741509045116,-172.3132906,9.199e-05,2]
[355726497,1741509045125,-4517.1237169,9.199e-05,2]
[355726498,1741509045141,-355.5619678,9.199e-05,2]
[355726499,1741509045179,-3447.51354814,9.199e-05,2]
[355726521,1741509046358,-1879.25,9.199e-05,2]
[355726523,1741509046367,-837.9131246,9.199e-05,2]
[355726551,1741509046619,-13377.10368632,9.199e-05,2]
[355726558,1741509047586,-32.19501956,9.199e-05,2]
[355726559,1741509047597,-8850.72486,9.199e-05,2]
[355726560,1741509047618,-141.81521213,9.199e-05,2]
[355726561,1741509047630,-4325.52285979,9.199e-05,2]
[355726571,1741509321752,1745.44,0.00028,120]
[355726717,1741510231522,-883.48900585,8.219e-05,2]
[355726718,1741510231678,-1007.15099415,8.219e-05,2]
[355726719,1741510231688,-200.0,8.355e-05,2]
[355726720,1741510231697,-2000.0,8.359e-05,2]
[355726721,1741510231706,-1000.0,8.408e-05,2]
[355726722,1741510231715,-477.17,8.492e-05,2]
[355726723,1741510231724,-380.73,8.513e-05,2]
[355726724,1741510231733,-165.49,8.526e-05,2]
[355726725,1741510231742,-910.9,8.575e-05,2]
[355726726,1741510231751,-500.0,8.877e-05,2]
[355726727,1741510231759,-250.0,9.025e-05,2]
[355726728,1741510231769,-19895.5065,9.099e-05,2]
[355726729,1741510231778,-495.21100164,9.173e-05,2]
[355726730,1741510231787,-150.0,9.179e-05,2]
[355726731,1741510231796,-150.0,9.18e-05,2]
[355726732,1741510231805,-152.62,9.18e-05,2]
[355726733,1741510231815,-1031.46,9.18e-05,2]
[355726734,1741510231825,-695.51,9.18e-05,2]
[355726735,1741510231834,-324.49,9.18e-05,2]
[355726736,1741510231844,-150.0,9.18e-05,2]
[355726737,1741510231854,-542.94,9.18e-05,2]
[355726738,1741510231863,-150.0,9.18e-05,2]
[355726739,1741510231873,-150.0,9.18e-05,2]
[355726740,1741510231883,-1219.52,9.18e-05,2]
[355726741,1741510231892,-285.46,9.18e-05,2]
[355726742,1741510231901,-9999.99,9.18e-05,2]
[355726743,1741510231911,-789.62772937,9.197e-05,2]
[355726744,1741510231920,-51730.9404465,9.197e-05,2]
[355726745,1741510231930,-500.0,9.198e-05,2]
[355726746,1741510231940,-500.0,9.198e-05,2]
[355726747,1741510231950,-500.0,9.198e-05,2]
[355726748,1741510231959,-500.0,9.198e-05,2]
[355726749,1741510231968,-500.0,9.198e-05,2]
[355726750,1741510231978,-500.0,9.198e-05,2]
[355726751,1741510231987,-527.33,9.198e-05,2]
[355726753,1741510231997,-500.0,9.198e-05,2]
[355726755,1741510232006,-500.0,9.198e-05,2]
[355726757,1741510232016,-503.17,9.198e-05,2]
[355726759,1741510232026,-500.0,9.198e-05,2]
[355726761,1741510232035,-500.0,9.198e-05,2]
[355726762,1741510232045,-500.0,9.198e-05,2]
[355726763,1741510232054,-500.0,9.198e-05,2]
[355726764,1741510232064,-500.0,9.198e-05,2]
[355726765,1741510232075,-500.0,9.198e-05,2]
[355726766,1741510232084,-500.0,9.198e-05,2]
[355726767,1741510232094,-500.0,9.198e-05,2]
[355726768,1741510232103,-500.0,9.198e-05,2]
[355726770,1741510232114,-500.0,9.198e-05,2]
[355726772,1741510232123,-500.0,9.198e-05,2]
[355726774,1741510232133,-500.0,9.198e-05,2]
[355726776,1741510232142,-500.0,9.198e-05,2]
[355726778,1741510232152,-500.0,9.198e-05,2]
[355726780,1741510232161,-500.0,9.198e-05,2]
[355726782,1741510232171,-500.0,9.198e-05,2]
[355726784,1741510232185,-500.0,9.198e-05,2]
[355726786,1741510232194,-500.0,9.198e-05,2]
[355726788,1741510232203,-500.0,9.198e-05,2]
[355726790,1741510232212,-500.0,9.198e-05,2]
[355726792,1741510232223,-500.0,9.198e-05,2]
[355726794,1741510232232,-500.0,9.198e-05,2]
[355726796,1741510232242,-500.0,9.198e-05,2]
[355726798,1741510232253,-500.0,9.198e-05,2]
[355726800,1741510232263,-500.0,9.198e-05,2]
[355726802,1741510232272,-500.0,9.198e-05,2]
[355726804,1741510232282,-500.0,9.198e-05,2]
[355726806,1741510232291,-500.0,9.198e-05,2]
[355726808,1741510232300,-602.753869,9.198e-05,2]
[355726810,1741510232310,-500.0,9.198e-05,2]
[355726812,1741510232319,-500.0,9.198e-05,2]
[355726814,1741510232329,-500.0,9.198e-05,2]
[355726816,1741510232339,-500.0,9.198e-05,2]
[355726818,1741510232348,-500.0,9.198e-05,2]
[355726820,1741510232357,-723.780848,9.198e-05,2]